fUST/lending_fUST_20250415
["ID","MTS","AMOUNT","RATE_DAILY","PERIOD"]
[357998016,1744647032376,-160.0,0.00022136,2]
[357998018,1744647032387,-4023.51431895,0.00022168,2]
[357998021,1744647032398,-183.9093224,0.00022268,2]
[357998023,1744647032408,-1086.71177111,0.0002237,2]
[357998026,1744647032418,-300.0,0.00022468,2]
[357998030,1744647032428,-15132.23762906,0.00022468,2]
[357998576,1744647038359,-555.19929333,0.00022467,2]
[357998578,1744647038369,-246.10344234,0.00022467,2]
[357998580,1744647038379,-500.0,0.00022467,2]
[357998582,1744647038388,-500.0,0.00022467,2]
[357998584,1744647038398,-500.0,0.00022467,2]
[357998586,1744647038407,-500.0,0.00022467,2]
[357998588,1744647038417,-500.0,0.00022467,2]
[357998590,1744647038426,-500.0,0.00022467,2]
[357998592,1744647038436,-399.19726433,0.00022467,2]
[357998594,1744647038448,-100.80273567,0.00022467,2]
[357998596,1744647038458,-500.0,0.00022467,2]
[357998598,1744647038467,-500.0,0.00022467,2]
[357998600,1744647038477,-500.0,0.00022467,2]
[357998602,1744647038488,-500.0,0.00022467,2]
[357998604,1744647038498,-500.0,0.00022467,2]
[357998606,1744647038508,-500.0,0.00022467,2]
[357998608,1744647038518,-500.0,0.00022467,2]
[357998610,1744647038528,-500.0,0.00022467,2]
[357998612,1744647038537,-500.0,0.00022467,2]
[357998615,1744647038548,-500.0,0.00022467,2]
[357998617,1744647038558,-500.0,0.00022467,2]
[357998619,1744647038568,-500.0,0.00022467,2]
[357998621,1744647038578,-500.0,0.00022467,2]
[357998624,1744647038588,-500.0,0.00022467,2]
[357998626,1744647038599,-447.18922456,0.00022467,2]
[357998635,1744647038676,-52.81077544,0.00022467,2]
[357998637,1744647038686,-500.0,0.00022467,2]
[357998639,1744647038696,-500.0,0.00022467,2]
[357998641,1744647038706,-500.0,0.00022467,2]
[357998643,1744647038715,-500.0,0.00022467,2]
[357998645,1744647038725,-21182.77941724,0.00022468,2]
[357998647,1744647038734,-500.0,0.00022473,2]
[357998648,1744647038743,-500.0,0.00022473,2]
[357998649,1744647038754,-500.0,0.00022473,2]
[357998650,1744647038763,-500.0,0.00022473,2]
[357998651,1744647038773,-500.0,0.00022473,2]
[357998652,1744647038783,-500.0,0.00022473,2]
[357998653,1744647038793,-500.0,0.00022473,2]
[357998654,1744647038803,-500.0,0.00022473,2]
[357998655,1744647038812,-500.0,0.00022473,2]
[357998656,1744647038822,-500.0,0.00022473,2]
[357998657,1744647038832,-504.4899149,0.00022473,2]
[357998658,1744647038948,-500.0,0.00022473,2]
[357998659,1744647038958,-500.0,0.00022473,2]
[357998660,1744647038970,-500.0,0.00022473,2]
[357998661,1744647038981,-500.0,0.00022473,2]
[357998662,1744647038990,-500.0,0.00022473,2]
[357998663,1744647039000,-421.74785002,0.00022473,2]
[357998664,1744647039010,-500.0,0.00022473,2]
[357998665,1744647039020,-500.0,0.00022473,2]
[357998666,1744647039029,-161.29316302,0.00022473,2]
[357998667,1744647039038,-500.0,0.00022497,2]
[357998668,1744647039048,-185.84280646,0.00022497,2]
[357998669,1744647039058,-240.31083157,0.00022497,2]
[357998670,1744647039068,-25326.499,0.00022498,2]
[357998671,1744647039078,-500.0,0.000225,2]
[357998672,1744647039087,-500.0,0.000225,2]
[357998673,1744647039098,-500.0,0.000225,2]
[357998674,1744647039108,-500.0,0.000225,2]
[357998675,1744647039117,-501.64381591,0.000225,2]
[357998676,1744647039126,-500.0,0.000225,2]
[357998677,1744647039136,-500.0,0.000225,2]
[357998678,1744647039149,-203.63456179,0.00023,2]
[357998679,1744647039159,-900.32095123,0.00024173,2]
[357998680,1744647039168,-1226.68723875,0.00024268,2]
[357998681,1744647039178,-798.16185292,0.00024268,3]
[357998682,1744647039187,-15185.89700264,0.00024268,2]
[357998683,1744647039200,-8065.57351325,0.00024268,2]
[357998720,1744647040653,-27307.06969506,0.00024268,2]
[357998732,1744647040758,-1297.58119961,0.00024268,2]
[357998734,1744647040770,-763.86,0.00024268,2]
[357999012,1744647043389,-58246.81540684,0.00024268,2]
[357999014,1744647043404,-2706.93594032,0.00024268,2]
[357999016,1744647043416,-417.28377198,0.00024268,2]
[357999019,1744647043428,-23873.55025786,0.00024268,2]
[357999021,1744647043440,-1036.06497871,0.00024268,2]
[357999204,1744647046378,-59830.89176678,0.00024268,2]
[357999206,1744647046390,-12477.65475046,0.00024268,2]
[357999208,1744647046402,-100587.54803895,0.00024268,2]
[357999210,1744647046414,-1195.46,0.00024268,2]
[357999213,1744647046426,-1689.1995859,0.00024268,2]
[357999215,1744647046439,-5450.0,0.00024268,2]
[357999221,1744647046485,-1682.88832038,0.00024268,2]
[357999331,1744647658848,1530.76,0.00025,120]
[357999369,1744648129399,1353.99999984,0.0002,120]
[357999424,1744648232281,-255.90531252,0.00023,2]
[357999425,1744648232294,-628.49070432,0.00023,2]
[357999426,1744648232304,-300.0,0.00023265,2]
[357999427,1744648232314,-300.0,0.00023265,2]
[357999428,1744648232328,-6949.35434345,0.00023266,2]
[357999442,1744648238645,-3050.64565655,0.00023266,2]
[357999443,1744648238655,-201.1495057,0.00023269,2]
[357999444,1744648238665,-1000.0,0.00023366,2]
[357999445,1744648238674,-950.87279966,0.00024064,2]
[357999446,1744648238683,-720.256761,0.00024073,2]
[357999448,1744648238693,-151.0,0.00024153,2]
[357999450,1744648238703,-500.0,0.00024162,2]
[357999451,1744648238713,-239.86010022,0.00024162,2]
[357999452,1744648238723,-500.0,0.00024162,2]
[357999453,1744648238734,-193.14288463,0.00024162,2]
[357999454,1744648238744,-500.0,0.00024162,2]
[357999455,1744648238753,-500.0,0.00024162,2]
[357999456,1744648238763,-500.0,0.00024162,2]
[357999457,1744648238774,-500.0,0.00024162,2]
[357999458,1744648238784,-500.0,0.00024162,2]
[357999459,1744648238794,-500.0,0.00024162,2]
[357999460,1744648238803,-500.0,0.00024162,2]
[357999461,1744648238813,-500.0,0.00024162,2]
[357999462,1744648238823,-500.0,0.00024162,2]
[357999463,1744648238833,-500.0,0.00024162,2]
[357999464,1744648238843,-500.0,0.00024162,2]
[357999465,1744648238853,-500.0,0.00024162,2]
[357999466,1744648238863,-500.0,0.00024162,2]
[357999467,1744648238873,-500.0,0.00024162,2]
[357999468,1744648238883,-500.0,0.00024162,2]
[357999469,1744648238894,-500.0,0.00024162,2]
[357999470,1744648238904,-500.0,0.00024162,2]
[357999471,1744648238916,-500.0,0.00024162,2]
[357999472,1744648238925,-500.0,0.00024162,2]
[357999473,1744648238935,-500.0,0.00024162,2]
[357999474,1744648238944,-500.0,0.00024162,2]
[357999475,1744648238954,-500.0,0.00024162,2]
[357999476,1744648238963,-500.0,0.00024162,2]
[357999477,1744648238973,-500.0,0.00024162,2]
[357999478,1744648238983,-500.0,0.00024162,2]
[357999479,1744648238992,-500.0,0.00024162,2]
[357999480,1744648239002,-500.0,0.00024162,2]
[357999481,1744648239012,-500.0,0.00024162,2]
[357999482,1744648239022,-500.0,0.00024162,2]
[357999483,1744648239032,-500.0,0.00024162,2]
[357999484,1744648239041,-555.55020815,0.00024162,2]
[357999485,1744648239051,-500.0,0.00024162,2]
[357999486,1744648239061,-500.0,0.00024162,2]
[357999487,1744648239071,-500.0,0.00024162,2]
[357999488,1744648239081,-200.0,0.00024162,2]
[357999489,1744648239092,-500.0,0.00024162,2]
[357999490,1744648239102,-500.0,0.00024162,2]
[357999491,1744648239112,-500.0,0.00024162,2]
[357999492,1744648239122,-500.0,0.00024162,2]
[357999493,1744648239131,-500.0,0.00024162,2]
[357999494,1744648239141,-500.0,0.00024162,2]
[357999495,1744648239151,-500.0,0.00024162,2]
[357999496,1744648239160,-500.0,0.00024162,2]
[357999497,1744648239170,-500.0,0.00024162,2]
[357999498,1744648239180,-500.0,0.00024162,2]
[357999499,1744648239190,-500.0,0.00024162,2]
[357999500,1744648239199,-500.0,0.00024162,2]
[357999501,1744648239210,-500.0,0.00024162,2]
[357999502,1744648239219,-500.0,0.00024162,2]
[357999503,1744648239229,-500.0,0.00024162,2]
[357999504,1744648239240,-500.0,0.00024162,2]
[357999505,1744648239253,-500.0,0.00024162,2]
[357999506,1744648239262,-500.0,0.00024162,2]
[357999507,1744648239272,-500.0,0.00024162,2]
[357999508,1744648239288,-500.0,0.00024162,2]
[357999509,1744648239303,-500.0,0.00024162,2]
[357999510,1744648239313,-500.0,0.00024162,2]
[357999511,1744648239323,-500.0,0.00024162,2]
[357999512,1744648239333,-500.0,0.00024162,2]
[357999513,1744648239343,-543.77516283,0.00024162,2]
[357999514,1744648239353,-500.0,0.00024162,2]
[357999515,1744648239365,-500.0,0.00024162,2]
[357999516,1744648239375,-500.0,0.00024162,2]
[357999517,1744648239384,-500.0,0.00024162,2]
[357999518,1744648239394,-500.0,0.00024162,2]
[357999519,1744648239404,-500.0,0.00024162,2]
[357999520,1744648239414,-500.0,0.00024162,2]
[357999521,1744648239424,-500.0,0.00024162,2]
[357999522,1744648239433,-500.0,0.00024162,2]
[357999523,1744648239443,-500.0,0.00024162,2]
[357999524,1744648239453,-500.0,0.00024162,2]
[357999525,1744648239463,-1857.75375058,0.00024167,2]
[357999526,1744648239473,-518.2175821,0.00024167,2]
[357999527,1744648239482,-613.34361937,0.00024168,2]
[357999528,1744648239492,-5372.76323316,0.00024168,3]
[357999529,1744648239502,-370000.0,0.00024168,2]
[357999530,1744648239512,-500.0,0.00024173,2]
[357999531,1744648239522,-500.0,0.00024173,2]
[357999532,1744648239531,-500.0,0.00024173,2]
[357999533,1744648239542,-500.0,0.00024173,2]
[357999534,1744648239551,-500.0,0.00024173,2]
[357999535,1744648239561,-500.0,0.00024173,2]
[357999536,1744648239571,-500.0,0.00024173,2]
[357999537,1744648239580,-502.34118889,0.00024173,2]
[357999538,1744648239592,-500.0,0.00024173,2]
[357999539,1744648239601,-500.0,0.00024173,2]
[357999540,1744648239611,-500.0,0.00024173,2]
[357999541,1744648239621,-500.0,0.00024173,2]
[357999542,1744648239630,-500.0,0.00024173,2]
[357999543,1744648239640,-500.0,0.00024173,2]
[357999544,1744648239650,-500.0,0.00024173,2]
[357999545,1744648239659,-500.0,0.00024173,2]
[357999546,1744648239669,-720.25676098,0.00024248,2]
[357999547,1744648239680,-3571.65,0.00024268,2]
[357999548,1744648239689,-720.25676098,0.00024423,2]
[357999549,1744648239698,-176.69761266,0.00024467,2]
[357999550,1744648239709,-183.66314054,0.00024467,2]
[357999551,1744648239719,-720.25676098,0.00024598,2]
[357999552,1744648239729,-1029.4960226,0.0002465,2]
[357999553,1744648239739,-500.0,0.00024658,2]
[357999554,1744648239750,-620.81257917,0.00024658,2]
[357999555,1744648239760,-300.71924627,0.00024725,2]
[357999556,1744648239771,-500.0,0.00024773,2]
[357999557,1744648239781,-500.0,0.00024773,2]
[357999558,1744648239791,-500.0,0.00024773,2]
[357999559,1744648239801,-500.0,0.00024773,2]
[357999560,1744648239811,-500.0,0.00024773,2]
[357999562,1744648239999,-500.0,0.00024773,2]
[357999563,1744648240019,-548.66355717,0.00024773,2]
[357999564,1744648240029,-628.35425929,0.00024773,2]
[357999565,1744648240039,-720.25676098,0.00024773,2]
[357999566,1744648240049,-1500.0,0.000248,2]
[357999567,1744648240059,-1500.0,0.000248,2]
[357999568,1744648240069,-1500.0,0.000248,2]
[357999569,1744648240079,-1500.0,0.000248,2]
[357999570,1744648240090,-1500.0,0.000248,2]
[357999571,1744648240099,-1500.0,0.000248,2]
[357999572,1744648240109,-1500.0,0.000248,2]
[357999573,1744648240119,-1732.85,0.000248,2]
[357999574,1744648240131,-1500.0,0.000248,2]
[357999575,1744648240141,-1500.0,0.000248,2]
[357999576,1744648240151,-1500.0,0.000248,2]
[357999577,1744648240161,-4587.09339231,0.000248,2]
[357999578,1744648240175,-1150.60243313,0.000248,2]
[357999579,1744648240187,-1599.13135451,0.000248,2]
[357999580,1744648240199,-3579.72747579,0.000248,2]
[357999581,1744648240211,-954.20543836,0.000248,2]
[357999582,1744648240223,-1998.49179696,0.000248,2]
[357999584,1744648240235,-293.33861973,0.000248,2]
[357999642,1744648241087,-176.69761266,0.00024467,2]
[357999644,1744648241097,-80.68238718,0.000248,2]
[357999883,1744648243383,-176.69761266,0.00024799,2]
[357999885,1744648243393,-183.66314054,0.00024799,2]
[357999887,1744648243403,-2004.7103953,0.000248,2]
[357999889,1744648243416,-682.02225995,0.000248,2]
[357999891,1744648243428,-943.09615219,0.000248,2]
[357999895,1744648243457,-791.8223535,0.000248,2]
[357999903,1744648243545,-10037.7557817,0.000248,2]
[358000201,1744648246658,-176.69761266,0.00024799,2]
[358000203,1744648246668,-77883.96737539,0.000248,2]
[358000205,1744648246678,-500.0,0.00024873,2]
[358000207,1744648246688,-500.65670929,0.00024873,2]
[358000209,1744648246698,-241.80320364,0.00024873,2]
[358000212,1744648246712,-258.19679636,0.00024873,2]
[358000214,1744648246722,-500.0,0.00024873,2]
[358000216,1744648246732,-500.0,0.00024873,2]
[358000218,1744648246742,-500.0,0.00024873,2]
[358000220,1744648246754,-552.63137065,0.00024873,2]
[358000222,1744648246763,-500.0,0.00024873,2]
[358000224,1744648246775,-500.0,0.00024873,2]
[358000226,1744648246784,-500.0,0.00024873,2]
[358000228,1744648246794,-500.0,0.00024873,2]
[358000230,1744648246804,-500.0,0.00024873,2]
[358000232,1744648246813,-500.0,0.00024873,2]
[358000234,1744648246823,-500.0,0.00024873,2]
[358000236,1744648246833,-500.0,0.00024873,2]
[358000238,1744648246845,-500.0,0.00024873,2]
[358000241,1744648246855,-500.0,0.00024873,2]
[358000243,1744648246865,-500.0,0.00024873,2]
[358000245,1744648246875,-500.0,0.00024873,2]
[358000247,1744648246884,-500.65130676,0.00024873,2]
[358000249,1744648246894,-224.27309541,0.00024873,2]
[358000251,1744648246903,-418.35918334,0.00024873,2]
[358000253,1744648246912,-500.0,0.00024873,2]
[358000255,1744648246922,-504.09516729,0.00024873,2]
[358000257,1744648246931,-500.0,0.00024873,2]
[358000259,1744648246940,-500.0,0.00024873,2]
[358000260,1744648246950,-619.5969043,0.00024873,2]
[358000262,1744648246960,-501.29477235,0.00024873,2]
[358000264,1744648246970,-500.0,0.00024873,2]
[358000266,1744648246979,-500.67437386,0.00024873,2]
[358000268,1744648246989,-500.0,0.00024873,2]
[358000270,1744648246998,-1140.64418483,0.000249,2]
[358000273,1744648247011,-19597.79252755,0.000249,2]
[358000275,1744648247022,-2185.43181,0.000249,2]
[358000280,1744648247057,-789.89999992,0.000249,2]
[358000478,1744648482544,289.5649407,0.00025,120]
[358000492,1744649314638,4500.0,0.00023,30]
[358000564,1744649432828,-250.0,0.00021978,2]
[358000565,1744649432837,-648.8731451,0.00022049,2]
[358000566,1744649432847,-786.41675099,0.00022128,2]
[358000567,1744649432860,-999.53588291,0.00022128,2]
[358000568,1744649432870,-2907.0327471,0.00022171,2]
[358000569,1744649432880,-1980.29534,0.00022541,2]
[358000570,1744649432890,-208.6908283,0.00022693,2]
[358000571,1744649432899,-294.428224,0.00022729,2]
[358000572,1744649432908,-300.0,0.00022841,2]
[358000573,1744649432917,-1978.0001267,0.00022842,2]
[358000574,1744649432926,-300.0,0.00023091,2]
[358000575,1744649432935,-450.0082093,0.00023093,2]
[358000576,1744649432945,-1183.82691933,0.00023185,2]
[358000577,1744649432954,-924.6145967,0.00023246,2]
[358000578,1744649432964,-500.0,0.00023272,2]
[358000579,1744649432973,-500.0,0.00023272,2]
[358000580,1744649432982,-500.0,0.00023272,2]
[358000581,1744649432992,-500.0,0.00023272,2]
[358000582,1744649433173,-500.0,0.00023272,2]
[358000583,1744649433203,-500.0,0.00023272,2]
[358000584,1744649433213,-500.0,0.00023272,2]
[358000585,1744649433223,-500.0,0.00023272,2]
[358000586,1744649433232,-500.0,0.00023272,2]
[358000587,1744649433243,-500.0,0.00023272,2]
[358000588,1744649433254,-500.0,0.00023272,2]
[358000589,1744649433264,-500.0,0.00023272,2]
[358000590,1744649433274,-500.0,0.00023272,2]
[358000591,1744649433285,-500.0,0.00023272,2]
[358000592,1744649433294,-500.0,0.00023272,2]
[358000593,1744649433304,-500.0,0.00023272,2]
[358000594,1744649433315,-500.0,0.00023272,2]
[358000595,1744649433325,-500.0,0.00023272,2]
[358000596,1744649433335,-844.67861327,0.00023272,2]
[358000597,1744649433345,-844.67861327,0.00023272,2]
[358000598,1744649433354,-844.67861327,0.00023272,2]
[358000599,1744649433364,-844.67861327,0.00023272,2]
[358000600,1744649433374,-844.67861327,0.00023272,2]
[358000601,1744649433387,-844.67861327,0.00023272,2]
[358000602,1744649433397,-844.67861327,0.00023272,2]
[358000603,1744649433407,-844.67861327,0.00023272,2]
[358000604,1744649433418,-844.67861327,0.00023272,2]
[358000605,1744649433428,-844.67861327,0.00023272,2]
[358000606,1744649433438,-844.67861327,0.00023272,2]
[358000607,1744649433448,-844.67861327,0.00023272,2]
[358000608,1744649433457,-844.67861327,0.00023272,2]
[358000609,1744649433467,-844.67861327,0.00023272,2]
[358000610,1744649433477,-844.67861327,0.00023272,2]
[358000611,1744649433487,-844.67861327,0.00023272,2]
[358000612,1744649433497,-844.67861327,0.00023272,2]
[358000613,1744649433506,-844.67861327,0.00023272,2]
[358000614,1744649433516,-844.67861327,0.00023272,2]
[358000615,1744649433527,-844.67861327,0.00023272,2]
[358000616,1744649433537,-844.67861327,0.00023272,2]
[358000617,1744649433547,-844.67861327,0.00023272,2]
[358000618,1744649433557,-844.67861327,0.00023272,2]
[358000619,1744649433568,-844.67861327,0.00023272,2]
[358000620,1744649433578,-844.67861327,0.00023272,2]
[358000621,1744649433587,-844.67861327,0.00023272,2]
[358000622,1744649433597,-844.67861327,0.00023272,2]
[358000623,1744649433607,-844.67861327,0.00023272,2]
[358000624,1744649433617,-844.67861327,0.00023272,2]
[358000625,1744649433629,-844.67861327,0.00023272,2]
[358000626,1744649433639,-844.67861327,0.00023272,2]
[358000627,1744649433649,-844.67861327,0.00023272,2]
[358000628,1744649433662,-844.67861327,0.00023272,2]
[358000629,1744649433671,-844.67861327,0.00023272,2]
[358000630,1744649433681,-844.67861327,0.00023272,2]
[358000631,1744649433691,-844.67861327,0.00023272,2]
[358000632,1744649433702,-844.67861331,0.00023272,2]
[358000633,1744649433711,-844.67861331,0.00023272,2]
[358000634,1744649433721,-844.67861331,0.00023272,2]
[358000635,1744649433733,-844.67861331,0.00023272,2]
[358000636,1744649433742,-500.0,0.00023273,2]
[358000637,1744649433752,-500.0,0.00023273,2]
[358000638,1744649433762,-500.0,0.00023273,2]
[358000639,1744649433771,-500.0,0.00023273,2]
[358000640,1744649433781,-500.0,0.00023273,2]
[358000641,1744649433791,-500.0,0.00023273,2]
[358000642,1744649433801,-500.0,0.00023273,2]
[358000643,1744649433811,-500.0,0.00023273,2]
[358000644,1744649433820,-500.0,0.00023273,2]
[358000645,1744649433831,-500.0,0.00023273,2]
[358000646,1744649433841,-500.0,0.00023273,2]
[358000647,1744649433852,-500.0,0.00023273,2]
[358000648,1744649433861,-500.0,0.00023273,2]
[358000649,1744649433871,-500.0,0.00023273,2]
[358000650,1744649433883,-500.0,0.00023273,2]
[358000651,1744649433892,-500.0,0.00023273,2]
[358000652,1744649433902,-181.09518994,0.00023286,2]
[358000653,1744649433912,-239.07577754,0.00023286,2]
[358000654,1744649433994,-260.92422246,0.00023286,2]
[358000655,1744649434004,-194.83697743,0.00023286,2]
[358000656,1744649434013,-3046.31432174,0.00023287,2]
[358000663,1744649438522,-500.0,0.00023271,2]
[358000664,1744649438532,-500.0,0.00023271,2]
[358000665,1744649438541,-500.0,0.00023271,2]
[358000666,1744649438551,-500.0,0.00023271,2]
[358000667,1744649438561,-500.0,0.00023271,2]
[358000668,1744649438570,-500.0,0.00023271,2]
[358000669,1744649438580,-500.0,0.00023271,2]
[358000670,1744649438589,-500.0,0.00023271,2]
[358000671,1744649438599,-500.0,0.00023271,2]
[358000672,1744649438608,-500.0,0.00023271,2]
[358000673,1744649438619,-289.56756181,0.00023271,2]
[358000674,1744649438631,-210.43243819,0.00023271,2]
[358000675,1744649438641,-500.0,0.00023271,2]
[358000676,1744649438653,-500.0,0.00023271,2]
[358000677,1744649438669,-228.39393284,0.00023271,2]
[358000678,1744649438678,-500.0,0.00023271,2]
[358000679,1744649438688,-500.0,0.00023271,2]
[358000680,1744649438698,-500.0,0.00023271,2]
[358000681,1744649438708,-500.0,0.00023271,2]
[358000682,1744649438718,-500.0,0.00023271,2]
[358000683,1744649438728,-500.0,0.00023271,2]
[358000684,1744649438740,-500.0,0.00023271,2]
[358000685,1744649438751,-500.0,0.00023271,2]
[358000686,1744649438760,-500.0,0.00023271,2]
[358000687,1744649438770,-500.0,0.00023271,2]
[358000688,1744649438779,-506.60931659,0.00023271,2]
[358000689,1744649438789,-500.0,0.00023271,2]
[358000690,1744649438799,-463.46429538,0.00023271,2]
[358000691,1744649438811,-36.53570462,0.00023271,2]
[358000692,1744649438821,-500.0,0.00023271,2]
[358000693,1744649438831,-500.0,0.00023271,2]
[358000694,1744649438841,-500.0,0.00023271,2]
[358000695,1744649438851,-500.0,0.00023271,2]
[358000696,1744649438860,-500.0,0.00023271,2]
[358000697,1744649438871,-500.0,0.00023271,2]
[358000698,1744649438883,-500.0,0.00023271,2]
[358000699,1744649438894,-500.0,0.00023271,2]
[358000700,1744649438904,-500.0,0.00023271,2]
[358000701,1744649438915,-270.5343668,0.00023271,2]
[358000702,1744649438926,-500.0,0.00023271,2]
[358000703,1744649438936,-500.0,0.00023271,2]
[358000704,1744649438946,-500.0,0.00023271,2]
[358000705,1744649438955,-500.0,0.00023271,2]
[358000706,1744649438965,-500.0,0.00023271,2]
[358000707,1744649438975,-500.0,0.00023271,2]
[358000708,1744649438985,-500.0,0.00023271,2]
[358000709,1744649438995,-500.0,0.00023271,2]
[358000711,1744649439006,-500.0,0.00023271,2]
[358000712,1744649439016,-404.05498101,0.00023271,2]
[358000713,1744649439064,-95.94501899,0.00023271,2]
[358000714,1744649439074,-500.0,0.00023271,2]
[358000715,1744649439087,-500.0,0.00023271,2]
[358000716,1744649439097,-92.68890031,0.00023286,2]
[358000717,1744649439110,-128.16004687,0.00023286,2]
[358000718,1744649439121,-21853.68567826,0.00023287,2]
[358000719,1744649439132,-4376.81145289,0.000239,2]
[358000720,1744649439142,-500.0,0.00023973,2]
[358000721,1744649439153,-150.81784098,0.00023973,2]
[358000722,1744649439162,-255.0,0.00024049,2]
[358000723,1744649439172,-214.8,0.00024049,2]
[358000724,1744649439181,-869.45007014,0.00024061,2]
[358000725,1744649439192,-85344.0460843,0.00024063,2]
[358000726,1744649439204,-69064.55559073,0.00024063,2]
[358000737,1744649440731,-993.56870196,0.00023093,2]
[358000738,1744649440787,-33153.37493616,0.00023093,2]
[358000739,1744649440798,-14131.95375951,0.00024063,2]
[358000743,1744649443567,-3825.00000137,0.00024063,2]
[358000744,1744649443579,-548.67886231,0.00024063,2]
[358000805,1744649446555,-3598.68252084,0.00024063,2]
[358000807,1744649446567,-5162.24549817,0.00024063,2]
[358001140,1744650632763,-170.16356,0.00022961,2]
[358001141,1744650632774,-151.0,0.0002386,2]
[358001143,1744650632783,-270.95635734,0.00023873,2]
[358001145,1744650632793,-260.53401876,0.00023873,2]
[358001147,1744650632803,-300.0,0.00023948,2]
[358001148,1744650632813,-300.0,0.00023948,2]
[358001150,1744650632823,-151.0,0.00023949,2]
[358001152,1744650632833,-151.0,0.00023949,2]
[358001154,1744650632843,-151.0,0.00023949,2]
[358001156,1744650632853,-151.0,0.00023949,2]
[358001158,1744650632863,-151.0,0.00023949,2]
[358001160,1744650632872,-151.0,0.00023949,2]
[358001161,1744650632882,-151.0,0.00023949,2]
[358001162,1744650632892,-151.0,0.00023949,2]
[358001163,1744650632902,-299.58122817,0.00023949,2]
[358001166,1744650632912,-207.4,0.00023949,2]
[358001169,1744650632921,-5477.46730616,0.00023949,2]
[358001171,1744650632930,-500.0,0.00023955,2]
[358001173,1744650632941,-290.98966425,0.00023955,2]
[358001175,1744650632950,-504.59426302,0.00023962,2]
[358001177,1744650632961,-3692.48933785,0.00023963,2]
[358001179,1744650632971,-7742.67477061,0.00023963,3]
[358001181,1744650632981,-100314.0358288,0.00023963,2]
[358001193,1744650638781,-500.0,0.00023954,2]
[358001194,1744650638791,-500.0,0.00023954,2]
[358001195,1744650638801,-500.0,0.00023954,2]
[358001196,1744650638810,-500.0,0.00023954,2]
[358001197,1744650638820,-500.0,0.00023954,2]
[358001198,1744650638830,-500.0,0.00023954,2]
[358001199,1744650638840,-500.0,0.00023954,2]
[358001200,1744650638851,-162.06569317,0.00023954,2]
[358001201,1744650638861,-500.0,0.00023954,2]
[358001202,1744650638871,-500.0,0.00023954,2]
[358001203,1744650638881,-500.0,0.00023954,2]
[358001204,1744650638891,-500.0,0.00023954,2]
[358001205,1744650638901,-500.0,0.00023954,2]
[358001206,1744650638911,-500.0,0.00023954,2]
[358001207,1744650638921,-500.0,0.00023954,2]
[358001208,1744650638931,-500.0,0.00023954,2]
[358001209,1744650638940,-500.0,0.00023954,2]
[358001210,1744650638950,-568.22807879,0.00023954,2]
[358001211,1744650638960,-500.0,0.00023954,2]
[358001212,1744650638970,-500.0,0.00023954,2]
[358001213,1744650638980,-500.0,0.00023954,2]
[358001214,1744650638990,-500.0,0.00023954,2]
[358001215,1744650639001,-500.0,0.00023954,2]
[358001216,1744650639010,-500.0,0.00023954,2]
[358001217,1744650639021,-500.0,0.00023954,2]
[358001219,1744650639035,-500.0,0.00023954,2]
[358001221,1744650639045,-500.0,0.00023954,2]
[358001222,1744650639054,-392.56451135,0.00023954,2]
[358001223,1744650639064,-500.0,0.00023954,2]
[358001224,1744650639075,-500.0,0.00023954,2]